lending/lending_fUSD_20250719
["ID","MTS","AMOUNT","RATE_DAILY","PERIOD"]
[373331088,1752948645096,-480.0,0.00019178,2]
[373331089,1752948645106,-460.0,0.00019178,2]
[373331091,1752948645116,-460.0,0.00019178,2]
[373331093,1752948645125,-255.61319246,0.00019178,2]
[373331095,1752948645135,-521.65,0.00019178,2]
[373331097,1752948645145,-480.0,0.00019178,2]
[373331099,1752948645154,-480.0,0.00019178,2]
[373331101,1752948645164,-461.96183873,0.00019178,2]
[373331103,1752948645174,-703.53,0.00019178,2]
[373331105,1752948645184,-500.35955992,0.00019178,2]
[373331106,1752948645193,-480.0,0.00019178,2]
[373331108,1752948645203,-480.0,0.00019178,2]
[373331110,1752948645212,-480.0,0.00019178,2]
[373331112,1752948645221,-460.0,0.00019178,2]
[373331114,1752948645232,-460.0,0.00019178,2]
[373331116,1752948645242,-480.0,0.00019178,2]
[373331118,1752948645251,-480.0,0.00019178,2]
[373331120,1752948645260,-501.39,0.00019178,2]
[373331121,1752948645270,-464.00127438,0.00019178,2]
[373331123,1752948645279,-480.0,0.00019178,2]
[373331125,1752948645289,-480.0,0.00019178,2]
[373331127,1752948645299,-460.0,0.00019178,2]
[373331129,1752948645309,-480.0,0.00019178,2]
[373331131,1752948645318,-460.0,0.00019178,2]
[373331133,1752948645328,-480.0,0.00019178,2]
[373331134,1752948645337,-766.56,0.00019178,2]
[373331135,1752948645347,-711.81,0.00019178,2]
[373331137,1752948645356,-528.28,0.00019178,2]
[373331138,1752948645365,-460.0,0.00019178,2]
[373331140,1752948645374,-480.0,0.00019178,2]
[373331142,1752948645384,-528.42,0.00019178,2]
[373331144,1752948645393,-460.0,0.00019178,2]
[373331145,1752948645403,-480.0,0.00019178,2]
[373331147,1752948645413,-460.0,0.00019178,2]
[373331149,1752948645423,-460.0,0.00019178,2]
[373331151,1752948645432,-885.03,0.00019178,2]
[373331152,1752948645442,-480.0,0.00019178,2]
[373331154,1752948645454,-460.0,0.00019178,2]
[373331156,1752948645463,-454.0410809,0.00019178,2]
[373331191,1752948646007,-25.9589191,0.00019178,2]
[373331193,1752948646017,-349.27747189,0.00019178,2]
[373331196,1752948646030,-111.92983469,0.00019178,2]
[373331198,1752948646040,-480.0,0.00019178,2]
[373331200,1752948646049,-326.66592547,0.00019178,2]
[373331202,1752948646061,-133.33407453,0.00019178,2]
[373331204,1752948646070,-553.24,0.00019178,2]
[373331206,1752948646080,-737.42592547,0.00019178,2]
[373331209,1752948646097,-110.49407453,0.00019178,2]
[373331211,1752948646106,-460.0,0.00019178,2]
[373331213,1752948646115,-19.62762153,0.00019178,2]
[373331215,1752948646127,-1271.33237847,0.00019178,2]
[373331217,1752948646137,-460.0,0.00019178,2]
[373331219,1752948646147,-657.13,0.00019178,2]
[373331221,1752948646156,-480.0,0.00019178,2]
[373331223,1752948646166,-397.23042758,0.00019178,2]
[373331265,1752948646576,-62.76957242,0.00019178,2]
[373331267,1752948646586,-233.82261803,0.00019178,2]
[373331269,1752948646598,-433.01558479,0.00019178,2]
[373331273,1752948646620,-26.98441521,0.00019178,2]
[373331275,1752948646630,-934.21,0.00019178,2]
[373331277,1752948646639,-549.38,0.00019178,2]
[373331279,1752948646649,-480.0,0.00019178,2]
[373331281,1752948646658,-480.0,0.00019178,2]
[373331283,1752948646668,-460.0,0.00019178,2]
[373331285,1752948646678,-460.0,0.00019178,2]
[373331287,1752948646687,-480.0,0.00019178,2]
[373331289,1752948646696,-460.0,0.00019178,2]
[373331291,1752948646706,-460.0,0.00019178,2]
[373331292,1752948646715,-500.0,0.00019178,2]
[373331294,1752948646724,-480.0,0.00019178,2]
[373331296,1752948646734,-480.0,0.00019178,2]
[373331298,1752948646743,-460.0,0.00019178,2]
[373331300,1752948646752,-460.0,0.00019178,2]
[373331302,1752948646762,-480.0,0.00019178,2]
[373331304,1752948646771,-480.0,0.00019178,2]
[373331306,1752948646780,-753.13,0.00019178,2]
[373331308,1752948646790,-558.24,0.00019178,2]
[373331310,1752948646800,-1593.86,0.00019178,2]
[373331312,1752948646810,-614.4824236,0.00019178,2]
[373331314,1752948646823,-6.9775764,0.00019178,2]
[373331316,1752948646832,-422.98759537,0.00019178,2]
[373331318,1752948646845,-480.0,0.00019178,2]
[373331321,1752948646855,-480.0,0.00019178,2]
[373331323,1752948646865,-460.0,0.00019178,2]
[373331325,1752948646874,-41.62534963,0.00019178,2]
[373331327,1752948646886,-418.37465037,0.00019178,2]
[373331329,1752948646896,-130.54076863,0.00019178,2]
[373331331,1752948646907,-492.80923137,0.00019178,2]
[373331333,1752948646917,-480.0,0.00019178,2]
[373331335,1752948646926,-480.0,0.00019178,2]
[373331337,1752948646935,-480.0,0.00019178,2]
[373331339,1752948646945,-485.46,0.00019178,2]
[373331341,1752948646954,-1242.74,0.00019178,2]
[373331343,1752948646963,-460.0,0.00019178,2]
[373331345,1752948646972,-480.0,0.00019178,2]
[373331347,1752948646982,-51.01863297,0.00019178,2]
[373331349,1752948646999,-428.98136703,0.00019178,2]
[373331351,1752948647008,-460.0,0.00019178,2]
[373331353,1752948647018,-1510.24,0.00019178,2]
[373331355,1752948647028,-480.0,0.00019178,2]
[373331357,1752948647038,-480.0,0.00019178,2]
[373331359,1752948647048,-460.0,0.00019178,2]
[373331361,1752948647057,-380.77863297,0.00019178,2]
[373331366,1752948647101,-99.22136703,0.00019178,2]
[373331369,1752948647111,-460.0,0.00019178,2]
[373331371,1752948647120,-480.0,0.00019178,2]
[373331373,1752948647130,-2.36454894,0.00019178,2]
[373331375,1752948647141,-457.63545106,0.00019178,2]
[373331377,1752948647151,-460.0,0.00019178,2]
[373331379,1752948647161,-569.89,0.00019178,2]
[373331381,1752948647170,-460.0,0.00019178,2]
[373331382,1752948647179,-963.77,0.00019178,2]
[373331383,1752948647189,-480.0,0.00019178,2]
[373331384,1752948647200,-500.0,0.00019178,2]
[373331385,1752948647210,-399.53538262,0.00019178,2]
[373331403,1752948647619,-889.0,0.00018738,2]
[373331406,1752948647629,-148.09998848,0.00019178,2]
[373331408,1752948647641,-654.3446289,0.00019178,2]
[373331410,1752948647651,-1098.81,0.00019178,2]
[373331412,1752948647660,-109.74538262,0.00019178,2]
[373331415,1752948647677,-414.04461738,0.00019178,2]
[373331417,1752948647686,-480.0,0.00019178,2]
[373331418,1752948647696,-480.0,0.00019178,2]
[373331420,1752948647705,-460.0,0.00019178,2]
[373331423,1752948647715,-460.0,0.00019178,2]
[373331424,1752948647724,-480.0,0.00019178,2]
[373331427,1752948647734,-534.28,0.00019178,2]
[373331428,1752948647743,-460.0,0.00019178,2]
[373331430,1752948647753,-489.57,0.00019178,2]
[373331432,1752948647762,-480.0,0.00019178,2]
[373331434,1752948647771,-480.0,0.00019178,2]
[373331436,1752948647781,-504.13,0.00019178,2]
[373331438,1752948647790,-480.0,0.00019178,2]
[373331440,1752948647799,-460.0,0.00019178,2]
[373331442,1752948647809,-492.15,0.00019178,2]
[373331444,1752948647821,-480.0,0.00019178,2]
[373331446,1752948647830,-2705.21,0.00019178,2]
[373331448,1752948647840,-480.0,0.00019178,2]
[373331451,1752948647851,-520.3,0.00019178,2]
[373331453,1752948647860,-480.0,0.00019178,2]
[373331455,1752948647870,-453.19,0.00019178,2]
[373331457,1752948647879,-480.0,0.00019178,2]
[373331458,1752948647888,-480.0,0.00019178,2]
[373331460,1752948647897,-480.0,0.00019178,2]
[373331462,1752948647907,-480.0,0.00019178,2]
[373331464,1752948647916,-460.0,0.00019178,2]
[373331466,1752948647926,-480.0,0.00019178,2]
[373331468,1752948647935,-480.0,0.00019178,2]
[373331470,1752948647944,-670.87,0.00019178,2]
[373331473,1752948647954,-460.0,0.00019178,2]
[373331474,1752948647963,-2003.04,0.00019178,2]
[373331476,1752948647973,-480.0,0.00019178,2]
[373331478,1752948647982,-747.16,0.00019178,2]
[373331480,1752948647993,-480.0,0.00019178,2]
[373331482,1752948648003,-480.0,0.00019178,2]
[373331484,1752948648012,-492.62,0.00019178,2]
[373331492,1752948648077,-460.0,0.00019178,2]
[373331494,1752948648087,-480.0,0.00019178,2]
[373331496,1752948648098,-480.0,0.00019178,2]
[373331498,1752948648109,-480.0,0.00019178,2]
[373331500,1752948648119,-480.0,0.00019178,2]
[373331502,1752948648128,-460.0,0.00019178,2]
[373331504,1752948648140,-573.42,0.00019178,2]
[373331506,1752948648151,-480.0,0.00019178,2]
[373331508,1752948648161,-480.0,0.00019178,2]
[373331510,1752948648172,-480.0,0.00019178,2]
[373331512,1752948648182,-480.0,0.00019178,2]
[373331514,1752948648192,-480.0,0.00019178,2]
[373331516,1752948648202,-2585.7,0.00019178,2]
[373331518,1752948648212,-747.29,0.00019178,2]
[373331520,1752948648222,-480.0,0.00019178,2]
[373331522,1752948648231,-460.0,0.00019178,2]
[373331524,1752948648241,-549.16,0.00019178,2]
[373331526,1752948648251,-480.0,0.00019178,2]
[373331528,1752948648261,-460.0,0.00019178,2]
[373331530,1752948648270,-480.0,0.00019178,2]
[373331532,1752948648280,-460.0,0.00019178,2]
[373331533,1752948648289,-714.73,0.00019178,2]
[373331535,1752948648298,-724.18,0.00019178,2]
[373331537,1752948648308,-480.0,0.00019178,2]
[373331539,1752948648318,-460.0,0.00019178,2]
[373331541,1752948648328,-460.0,0.00019178,2]
[373331543,1752948648337,-460.0,0.00019178,2]
[373331545,1752948648350,-460.0,0.00019178,2]
[373331547,1752948648359,-480.0,0.00019178,2]
[373331549,1752948648369,-480.0,0.00019178,2]
[373331551,1752948648378,-505.06,0.00019178,2]
[373331553,1752948648388,-690.52,0.00019178,2]
[373331555,1752948648399,-460.0,0.00019178,2]
[373331557,1752948648409,-1275.67,0.00019178,2]
[373331559,1752948648419,-460.0,0.00019178,2]
[373331561,1752948648430,-460.0,0.00019178,2]
[373331563,1752948648440,-480.0,0.00019178,2]
[373331565,1752948648452,-460.0,0.00019178,2]
[373331567,1752948648462,-480.0,0.00019178,2]
[373331569,1752948648472,-580.67,0.00019178,2]
[373331571,1752948648482,-505.38,0.00019178,2]
[373331573,1752948648491,-460.0,0.00019178,2]
[373331575,1752948648501,-480.0,0.00019178,2]
[373331577,1752948648511,-633.9,0.00019178,2]
[373331579,1752948648521,-460.0,0.00019178,2]
[373331581,1752948648532,-480.0,0.00019178,2]
[373331583,1752948648541,-460.0,0.00019178,2]
[373331585,1752948648551,-551.01429395,0.00019178,2]
[373331587,1752948648564,-13.44570605,0.00019178,2]
[373331589,1752948648574,-480.0,0.00019178,2]
[373331591,1752948648583,-61.91029365,0.00019178,2]
[373331593,1752948648597,-418.08970635,0.00019178,2]
[373331595,1752948648606,-725.88921543,0.00019178,2]
[373331597,1752948648619,-4624.46078457,0.00019178,2]
[373331599,1752948648628,-480.0,0.00019178,2]
[373331601,1752948648638,-480.0,0.00019178,2]
[373331603,1752948648647,-460.0,0.00019178,2]
[373331605,1752948648659,-480.0,0.00019178,2]
[373331607,1752948648669,-897.68,0.00019178,2]
[373331609,1752948648678,-4041.68,0.00019178,2]
[373331611,1752948648688,-460.0,0.00019178,2]
[373331613,1752948648698,-480.0,0.00019178,2]
[373331615,1752948648708,-480.0,0.00019178,2]
[373331617,1752948648717,-480.0,0.00019178,2]
[373331619,1752948648728,-460.0,0.00019178,2]
[373331621,1752948648738,-535.6,0.00019178,2]
[373331623,1752948648747,-295.37399865,0.00019178,2]
[373331625,1752948648757,-480.0,0.00019178,2]
[373331627,1752948648768,-460.0,0.00019178,2]
[373331629,1752948648777,-547.16,0.00019178,2]
[373331631,1752948648787,-576.16,0.00019178,2]
[373331633,1752948648796,-480.0,0.00019178,2]
[373331635,1752948648807,-480.0,0.00019178,2]
[373331637,1752948648818,-688.33,0.00019178,2]
[373331639,1752948648828,-480.0,0.00019178,2]
[373331641,1752948648838,-480.0,0.00019178,2]
[373331643,1752948648849,-500.0,0.00019178,2]
[373331645,1752948648859,-555.83,0.00019178,2]
[373331647,1752948648868,-708.72,0.00019178,2]
[373331649,1752948648878,-460.0,0.00019178,2]
[373331651,1752948648887,-480.0,0.00019178,2]
[373331653,1752948648897,-575.96,0.00019178,2]
[373331655,1752948648907,-480.0,0.00019178,2]
[373331657,1752948648917,-480.0,0.00019178,2]
[373331659,1752948648927,-928.83,0.00019178,2]
[373331661,1752948648937,-480.0,0.00019178,2]
[373331663,1752948648947,-460.0,0.00019178,2]
[373331665,1752948648957,-480.0,0.00019178,2]
[373331667,1752948648967,-475.92,0.00019178,2]
[373331669,1752948648978,-1042.6,0.00019178,2]
[373331671,1752948648990,-580.93,0.00019178,2]
[373331673,1752948649001,-480.0,0.00019178,2]
[373331675,1752948649011,-460.0,0.00019178,2]
[373331677,1752948649022,-773.12,0.00019178,2]
[373331679,1752948649032,-480.0,0.00019178,2]
[373331680,1752948649043,-480.0,0.00019178,2]
[373331681,1752948649053,-514.04,0.00019178,2]
[373331682,1752948649063,-480.0,0.00019178,2]
[373331683,1752948649073,-460.0,0.00019178,2]
[373331684,1752948649083,-480.0,0.00019178,2]
[373331685,1752948649097,-480.0,0.00019178,2]
[373331686,1752948649108,-460.0,0.00019178,2]
[373331687,1752948649118,-771.6,0.00019178,2]
[373331688,1752948649128,-508.01,0.00019178,2]
[373331689,1752948649138,-470.22,0.00019178,2]
[373331690,1752948649147,-460.0,0.00019178,2]
[373331691,1752948649157,-480.0,0.00019178,2]
[373331692,1752948649167,-1279.5,0.00019178,2]
[373331694,1752948649177,-480.0,0.00019178,2]
[373331696,1752948649187,-480.0,0.00019178,2]
[373331698,1752948649198,-225.17,0.00019178,2]
[373331700,1752948649209,-460.0,0.00019178,2]
[373331702,1752948649219,-480.0,0.00019178,2]
[373331704,1752948649230,-2097.34,0.00019178,2]
[373331706,1752948649241,-480.0,0.00019178,2]
[373331708,1752948649252,-615.44,0.00019178,2]
[373331710,1752948649262,-480.0,0.00019178,2]
[373331712,1752948649272,-480.0,0.00019178,2]
[373331714,1752948649282,-480.0,0.00019178,2]
[373331716,1752948649292,-480.0,0.00019178,2]
[373331718,1752948649302,-480.0,0.00019178,2]
[373331720,1752948649312,-480.0,0.00019178,2]
[373331722,1752948649322,-480.0,0.00019178,2]
[373331724,1752948649331,-460.0,0.00019178,2]
[373331726,1752948649342,-480.0,0.00019178,2]
[373331728,1752948649352,-28477.59851401,0.00019178,2]
[373331730,1752948649363,-25457.0902,0.00019187,2]
[373331732,1752948649372,-500.0,0.00019285,2]
[373331734,1752948649382,-500.0,0.00019285,2]
[373331736,1752948649392,-480.0,0.00019286,2]
[373331737,1752948649401,-480.0,0.00019286,2]
[373331739,1752948649411,-460.0,0.00019286,2]
[373331741,1752948649421,-480.0,0.00019286,2]
[373331743,1752948649431,-477.72,0.00019286,2]
[373331745,1752948649441,-1663.24,0.00019286,2]
[373331747,1752948649453,-560.94,0.00019286,2]
[373331749,1752948649462,-3103.69,0.00019286,2]
[373331751,1752948649472,-663.38,0.00019286,2]
[373331753,1752948649482,-494.53,0.00019286,2]
[373331755,1752948649491,-658.57,0.00019286,2]
[373331757,1752948649501,-2279.37,0.00019286,2]
[373331759,1752948649510,-498.7,0.00019286,2]
[373331761,1752948649520,-480.0,0.00019286,2]
[373331763,1752948649530,-1523.27,0.00019286,2]
[373331765,1752948649540,-480.0,0.00019286,2]
[373331767,1752948649549,-2576.9,0.00019286,2]
[373331769,1752948649559,-480.0,0.00019286,2]
[373331771,1752948649568,-795.64,0.00019286,2]
[373331772,1752948649577,-731.75,0.00019286,2]
[373331774,1752948649587,-480.0,0.00019286,2]
[373331776,1752948649598,-480.0,0.00019286,2]
[373331778,1752948649609,-768.65,0.00019286,2]
[373331780,1752948649619,-480.0,0.00019286,2]
[373331782,1752948649628,-1426.81,0.00019286,2]
[373331784,1752948649638,-3347.52,0.00019286,2]
[373331786,1752948649648,-15055.7,0.00019286,2]
[373331788,1752948649658,-480.0,0.00019286,2]
[373331790,1752948649668,-2149.48,0.00019286,2]
[373331792,1752948649678,-480.0,0.00019286,2]
[373331794,1752948649687,-480.0,0.00019286,2]
[373331796,1752948649697,-978.19,0.00019286,2]
[373331798,1752948649706,-918.0,0.00019286,2]
[373331800,1752948649715,-480.0,0.00019286,2]
[373331802,1752948649725,-480.0,0.00019286,2]
[373331804,1752948649735,-1440.52,0.00019286,2]
[373331806,1752948649744,-487.15,0.00019286,2]
[373331808,1752948649754,-480.0,0.00019287,2]
[373331810,1752948649763,-480.0,0.00019287,2]
[373331812,1752948649773,-480.0,0.00019287,2]
[373331814,1752948649783,-480.0,0.00019287,2]
[373331816,1752948649792,-480.0,0.00019287,2]
[373331818,1752948649801,-460.0,0.00019287,2]
[373331820,1752948649810,-460.0,0.00019287,2]
[373331822,1752948649819,-460.0,0.00019287,2]
[373331824,1752948649829,-460.0,0.00019287,2]
[373331826,1752948649838,-340.0,0.00019287,2]
[373331828,1752948649849,-283.78410204,0.00019287,2]
[373331829,1752948649858,-360.0,0.00019287,2]
[373331831,1752948649867,-480.0,0.00019287,2]
[373331833,1752948649876,-460.0,0.00019287,2]
[373331835,1752948649885,-460.0,0.00019287,2]
[373331837,1752948649894,-460.0,0.00019287,2]
[373331839,1752948649903,-460.0,0.00019287,2]
[373331841,1752948649912,-460.0,0.00019287,2]
[373331843,1752948649922,-460.0,0.00019287,2]
[373331845,1752948649931,-513.49,0.00019287,2]
[373331847,1752948649940,-460.0,0.00019287,2]
[373331849,1752948649949,-480.0,0.00019287,2]
[373331851,1752948649958,-460.0,0.00019287,2]
[373331853,1752948649967,-480.0,0.00019287,2]
[373331854,1752948649976,-293.95541866,0.00019287,2]
[373331856,1752948649985,-611.02,0.00019287,2]
[373331858,1752948649994,-440.0,0.00019287,2]
[373331860,1752948650003,-480.0,0.00019287,2]
[373331862,1752948650013,-480.0,0.00019287,2]
[373331864,1752948650021,-428.52574727,0.00019287,2]
[373331866,1752948650030,-480.0,0.00019287,2]
[373331868,1752948650039,-460.0,0.00019287,2]
[373331870,1752948650048,-480.0,0.00019287,2]
[373331872,1752948650057,-480.0,0.00019287,2]
[373331874,1752948650066,-575.83,0.00019287,2]
[373331876,1752948650075,-480.0,0.00019287,2]
[373331878,1752948650084,-460.0,0.00019287,2]
[373331879,1752948650093,-480.0,0.00019287,2]
[373331881,1752948650102,-460.0,0.00019287,2]
[373331883,1752948650111,-426.33618965,0.00019287,2]
[373331885,1752948650120,-283.99,0.00019287,2]
[373331887,1752948650129,-480.0,0.00019287,2]
[373331889,1752948650138,-480.0,0.00019287,2]
[373331891,1752948650147,-480.0,0.00019287,2]
[373331893,1752948650156,-440.0,0.00019287,2]
[373331895,1752948650165,-480.0,0.00019287,2]
[373331897,1752948650174,-566.82,0.00019287,2]
[373331899,1752948650182,-514.62,0.00019287,2]
[373331901,1752948650191,-480.0,0.00019287,2]
[373331902,1752948650200,-480.0,0.00019287,2]
[373331905,1752948650211,-460.0,0.00019287,2]
[373331906,1752948650220,-480.0,0.00019287,2]
[373331908,1752948650230,-480.0,0.00019287,2]
[373331910,1752948650240,-539.01,0.00019287,2]
[373331912,1752948650249,-379.15,0.00019287,2]
[373331914,1752948650259,-259.35,0.00019287,2]
[373331916,1752948650268,-214.77,0.00019287,2]
[373331918,1752948650277,-480.0,0.00019287,2]
[373331920,1752948650287,-539.99,0.00019287,2]
[373331922,1752948650296,-500.0,0.00019287,2]
[373331924,1752948650305,-480.0,0.00019287,2]
[373331926,1752948650314,-460.0,0.00019287,2]
[373331928,1752948650323,-480.0,0.00019287,2]
[373331930,1752948650332,-480.0,0.00019287,2]
[373331932,1752948650342,-480.0,0.00019287,2]
[373331934,1752948650351,-460.0,0.00019287,2]
[373331936,1752948650360,-480.0,0.00019287,2]
[373331938,1752948650370,-528.67408282,0.00019287,2]
[373331940,1752948650379,-480.0,0.00019287,2]
[373331942,1752948650389,-480.0,0.00019287,2]
[373331944,1752948650399,-460.0,0.00019287,2]
[373331946,1752948650409,-480.0,0.00019287,2]
[373331949,1752948650419,-460.0,0.00019287,2]
[373331951,1752948650429,-566.11,0.00019287,2]
[373331953,1752948650442,-480.0,0.00019287,2]
[373331955,1752948650454,-460.0,0.00019287,2]
[373331957,1752948650464,-480.0,0.00019287,2]
[373331959,1752948650473,-480.0,0.00019287,2]
[373331961,1752948650482,-851.71,0.00019287,2]
[373331963,1752948650493,-460.0,0.00019287,2]
[373331965,1752948650502,-460.0,0.00019287,2]
[373331967,1752948650512,-556.13,0.00019287,2]
[373331969,1752948650522,-480.0,0.00019287,2]
[373331971,1752948650532,-480.0,0.00019287,2]
[373331973,1752948650541,-291.77178312,0.00019287,2]
[373331975,1752948650551,-440.0,0.00019287,2]
[373331977,1752948650561,-465.31,0.00019287,2]
[373331979,1752948650570,-460.0,0.00019287,2]
[373331981,1752948650579,-558.62,0.00019287,2]
[373331983,1752948650588,-480.0,0.00019287,2]
[373331985,1752948650599,-460.0,0.00019287,2]
[373331987,1752948650609,-460.0,0.00019287,2]
[373331989,1752948650619,-154.65,0.00019287,2]
[373331991,1752948650630,-480.0,0.00019287,2]
[373331993,1752948650639,-480.0,0.00019287,2]
[373331995,1752948650648,-460.0,0.00019287,2]
[373331997,1752948650658,-480.0,0.00019287,2]
[373331999,1752948650667,-480.0,0.00019287,2]
[373332001,1752948650676,-460.0,0.00019287,2]
[373332003,1752948650686,-332.15794165,0.00019287,2]
[373332005,1752948650695,-480.0,0.00019287,2]
[373332007,1752948650704,-480.0,0.00019287,2]
[373332009,1752948650714,-700.23,0.00019287,2]
[373332011,1752948650724,-215.49,0.00019287,2]
[373332013,1752948650734,-480.0,0.00019287,2]
[373332015,1752948650743,-1386.574773,0.00019287,2]
[373332016,1752948650753,-202.51,0.00019287,2]
[373332018,1752948650762,-480.0,0.00019287,2]
[373332020,1752948650771,-1267.014182,0.00019287,2]
[373332022,1752948650781,-480.0,0.00019287,2]
[373332024,1752948650791,-1237.293804,0.00019287,2]
[373332026,1752948650801,-604.89,0.00019287,2]
[373332028,1752948650810,-480.0,0.00019287,2]
[373332030,1752948650819,-480.0,0.00019287,2]
[373332032,1752948650829,-480.0,0.00019287,2]
[373332034,1752948650838,-480.0,0.00019287,2]
[373332036,1752948650847,-480.0,0.00019287,2]
[373332038,1752948650857,-480.0,0.00019287,2]
[373332040,1752948650866,-480.0,0.00019287,2]
[373332042,1752948650876,-460.0,0.00019287,2]
[373332044,1752948650885,-480.0,0.00019287,2]
[373332046,1752948650894,-480.0,0.00019287,2]
[373332048,1752948650903,-480.0,0.00019287,2]
[373332050,1752948650912,-440.0,0.00019287,2]
[373332052,1752948650921,-480.0,0.00019287,2]
[373332054,1752948650931,-480.0,0.00019287,2]
[373332056,1752948650940,-460.0,0.00019287,2]
[373332058,1752948650950,-480.0,0.00019287,2]
[373332060,1752948650959,-306.75,0.00019287,2]
[373332062,1752948650969,-480.0,0.00019287,2]
[373332064,1752948650979,-157.31,0.00019287,2]
[373332066,1752948650988,-480.0,0.00019287,2]
[373332068,1752948650997,-480.0,0.00019287,2]
[373332070,1752948651007,-480.0,0.00019287,2]
[373332072,1752948651016,-460.0,0.00019287,2]
[373332074,1752948651027,-460.0,0.00019287,2]
[373332076,1752948651036,-539.83380035,0.00019287,2]
[373332078,1752948651046,-480.0,0.00019287,2]
[373332080,1752948651056,-460.0,0.00019287,2]
[373332082,1752948651065,-347.05272673,0.00019287,2]
[373332084,1752948651074,-460.0,0.00019287,2]
[373332086,1752948651083,-480.0,0.00019287,2]
[373332088,1752948651092,-480.0,0.00019287,2]
[373332090,1752948651102,-579.1,0.00019287,2]
[373332092,1752948651111,-480.0,0.00019287,2]
[373332094,1752948651121,-480.0,0.00019287,2]
[373332096,1752948651131,-480.0,0.00019287,2]
[373332098,1752948651140,-480.0,0.00019287,2]
[373332100,1752948651149,-223.16,0.00019287,2]
[373332102,1752948651159,-480.0,0.00019287,2]
[373332104,1752948651168,-480.0,0.00019287,2]
[373332106,1752948651178,-480.0,0.00019287,2]
[373332108,1752948651187,-480.0,0.00019287,2]
[373332110,1752948651196,-460.0,0.00019287,2]
[373332111,1752948651205,-480.0,0.00019287,2]
[373332112,1752948651215,-1391.43,0.00019287,2]
[373332113,1752948651224,-480.0,0.00019287,2]
[373332114,1752948651233,-480.0,0.00019287,2]
[373332115,1752948651243,-480.0,0.00019287,2]
[373332116,1752948651253,-563.11,0.00019287,2]
[373332117,1752948651262,-460.0,0.00019287,2]
[373332118,1752948651271,-480.0,0.00019287,2]
[373332119,1752948651280,-480.0,0.00019287,2]
[373332120,1752948651289,-480.0,0.00019287,2]
[373332121,1752948651298,-480.0,0.00019287,2]
[373332122,1752948651307,-480.0,0.00019287,2]
[373332123,1752948651316,-480.0,0.00019287,2]
[373332124,1752948651326,-480.0,0.00019287,2]
[373332125,1752948651335,-170.0,0.00019287,2]
[373332126,1752948651345,-480.0,0.00019287,2]
[373332127,1752948651354,-510.79,0.00019287,2]
[373332128,1752948651364,-480.0,0.00019287,2]
[373332129,1752948651373,-480.0,0.00019287,2]
[373332130,1752948651383,-480.0,0.00019287,2]
[373332131,1752948651392,-651.6,0.00019287,2]
[373332132,1752948651402,-1110.87,0.00019287,2]
[373332133,1752948651411,-480.0,0.00019287,2]
[373332134,1752948651420,-196.31,0.00019287,2]